bitfinex/quotes_SOLUSD_20250908
["timestamp","ask_amount","ask_price","bid_price","bid_amount"]
[1757352156315,0.7,216.32,216.29,37.54]
[1757352156521,0.7,216.35,216.29,37.54]
[1757352156713,0.7,216.35,216.29,38.26]
[1757352156908,0.06,216.36,216.29,38.26]
[1757352157218,0.06,216.36,216.3,0.72]
[1757352157411,0.06,216.36,216.31,4.62299477]
[1757352157596,0.06,216.36,216.32,0.72]
[1757352157792,0.76,216.36,216.33,37.52]
[1757352158110,0.06,216.36,216.34,37.5]
[1757352158697,0.76,216.36,216.34,37.5]
[1757352158894,0.76,216.36,216.31,4.62299477]
[1757352159129,0.76,216.36,216.32,37.48]
[1757352159300,13.59559401,216.34,216.29,4.62321933]
[1757352159639,0.06,216.36,216.22,0.72]
[1757352159640,24.35121778,216.32,216.22,0.72]
[1757352159804,13.59559401,216.3,216.23,32.44]
[1757352160120,13.59559401,216.3,216.24,32.44]
[1757352160328,13.59559401,216.28,216.24,32.44]
[1757352160710,0.72,216.27,216.24,32.44]
[1757352160903,0.72,216.3,216.24,32.44]
[1757352161099,13.59559401,216.28,216.24,32.44]
[1757352161420,13.59559401,216.26,216.24,32.44]
[1757352161735,0.72,216.29,216.24,32.44]
[1757352161902,13.59559401,216.34,216.25,0.66]
[1757352162246,0.5,216.43,216.33,20.0]
[1757352162522,0.5,216.43,216.34,64.86]
[1757352162818,0.72,216.42,216.32,0.66]
[1757352162998,13.59559401,216.41,216.32,0.66]
[1757352163192,0.72,216.42,216.34,26.0]
[1757352163193,13.59559401,216.39,216.34,26.0]
[1757352163429,13.59559401,216.39,216.36,4.62192641]
[1757352163601,0.5,216.43,216.37,0.66]
[1757352163919,0.5,216.43,216.38,38.28]
[1757352164104,0.5,216.43,216.38,38.94]
[1757352164305,0.5,216.43,216.39,0.66]
[1757352164510,0.5,216.43,216.41,26.0]
[1757352164706,0.5,216.43,216.42,38.36]
[1757352164896,0.5,216.43,216.42,39.02]
[1757352165318,0.5,216.43,216.42,38.34]
[1757352165522,0.5,216.43,216.42,42.96064504]
[1757352165720,0.5,216.43,216.42,38.34]
[1757352165919,0.5,216.43,216.4,4.620998]
[1757352166422,0.5,216.43,216.41,38.36]
[1757352166616,0.5,216.43,216.42,38.36]
[1757352167318,37.05728009,216.47,216.42,38.34]
[1757352167319,13.59559401,216.46,216.42,38.34]
[1757352167501,13.59559401,216.44,216.43,38.34]
[1757352167703,0.72,216.44,216.43,38.32]
[1757352168308,0.72,216.44,216.22,20.0]
[1757352168623,13.59559401,216.42,216.34,0.66]
[1757352168809,28.08127015,216.47,216.35,26.0]
[1757352169006,0.72,216.46,216.36,0.66]
[1757352169234,23.46168608,216.47,216.39,26.0]
[1757352169406,23.46168608,216.47,216.4,0.66]
[1757352169606,23.46168608,216.47,216.42,4.62064504]
[1757352169830,23.46168608,216.47,216.42,5.28064504]
[1757352170205,23.46168608,216.47,216.42,16.83225764]
[1757352170408,23.46168608,216.47,216.45,26.0]
[1757352170605,23.46168608,216.47,216.46,38.3]
[1757352171118,22.96168608,216.47,216.46,38.32]
[1757352171616,22.96168608,216.47,216.46,43.59979118]
[1757352171829,1e-08,216.47,216.46,5.27979118]
[1757352172011,1e-08,216.47,216.46,43.57979118]
[1757352172212,13.59559401,216.54,216.46,55.12926914]
[1757352172412,13.59559401,216.52,216.47,38.3]
[1757352172607,0.29609858,216.58,216.48,38.3]
[1757352172825,13.59559401,216.56,216.49,38.32]
[1757352173024,13.59559401,216.54,216.46,16.16926914]
[1757352173234,13.59559401,216.52,216.47,38.3]
[1757352173413,0.72,216.51,216.48,38.3]
[1757352173608,0.72,216.51,216.48,42.91919794]
[1757352173920,13.59559401,216.53,216.48,38.3]
[1757352174118,13.59559401,216.51,216.48,38.3]
[1757352174319,13.59559401,216.54,216.48,54.46775268]
[1757352175128,0.72,216.55,216.48,55.12775268]
[1757352175344,13.89169259,216.58,216.48,55.12775268]
[1757352175522,0.29609858,216.58,216.52,42.16478847]
[1757352175710,0.29609858,216.58,216.53,38.44]
[1757352176033,0.29609858,216.58,216.52,49.40478847]
[1757352176335,13.59559401,216.56,216.53,38.48]
[1757352176525,0.22,216.56,216.53,38.48]
[1757352176931,0.29609858,216.58,216.54,0.66]
[1757352177143,0.29609858,216.58,216.55,39.26]
[1757352177427,0.29609858,216.58,216.52,33.24]
[1757352177628,0.29609858,216.58,216.49,4.61902832]
[1757352177838,0.29609858,216.58,216.5,37.78]
[1757352178134,13.59559401,216.57,216.5,37.78]
[1757352178309,0.29609858,216.58,216.5,37.78]
[1757352178310,0.29609858,216.58,216.51,0.66]
[1757352178628,0.29609858,216.58,216.5,37.78]
[1757352178835,0.72,216.57,216.49,4.61902832]
[1757352179036,0.72,216.57,216.5,38.68]
[1757352179223,0.29609858,216.58,216.5,39.34]
[1757352179424,0.29609858,216.58,216.51,0.66]
[1757352179608,0.29609858,216.58,216.52,4.61851099]
[1757352179926,0.29609858,216.58,216.52,16.16478847]
[1757352180134,0.29609858,216.58,216.53,39.32]
[1757352180506,0.29609858,216.58,216.53,38.66]
[1757352180712,0.29609858,216.58,216.5,26.66]
[1757352180713,0.72,216.57,216.5,5.27876091]
[1757352180912,0.72,216.57,216.51,38.64]
[1757352181112,0.29609858,216.58,216.52,0.66]
[1757352181637,0.29609858,216.58,216.53,4.61813088]
[1757352181934,13.59559401,216.56,216.51,4.61853611]
[1757352182139,13.59559401,216.54,216.46,4.61979118]
[1757352182351,14.31559401,216.54,216.47,38.62]
[1757352183011,14.31559401,216.54,216.46,4.61979118]
[1757352183207,14.31559401,216.54,216.47,38.6]
[1757352183515,0.72,216.54,216.47,38.6]
[1757352183714,0.72,216.54,216.48,4.61936437]
[1757352183931,13.59559401,216.53,216.48,4.61936437]
[1757352184141,13.59559401,216.51,216.49,38.58]
[1757352184337,13.59559401,216.49,216.42,0.66]
[1757352184628,0.72,216.51,216.45,38.56]
[1757352184830,13.59559401,216.53,216.46,0.66]
[1757352185041,13.09559401,216.53,216.46,0.66]
[1757352185219,0.72,216.55,216.46,0.66]
[1757352185415,0.72,216.55,216.47,38.58]
[1757352185729,0.72,216.54,216.49,4.619151]
[1757352186127,0.72,216.53,216.49,4.619151]
[1757352186541,4.6176885,216.56,216.49,4.619151]
[1757352186748,0.72,216.52,216.49,4.619151]
[1757352186923,0.29609858,216.58,216.45,11.55001155]
[1757352186924,0.72,216.51,216.45,4.61979937]
[1757352187122,0.72,216.51,216.46,38.52]
[1757352187329,13.59559401,216.49,216.46,38.52]
[1757352187522,13.59559401,216.47,216.46,38.52]
[1757352187833,13.59559401,216.5,216.46,43.13962194]
[1757352188222,13.59559401,216.48,216.39,11.55319953]
[1757352188534,13.59559401,216.51,216.42,4.62044725]
[1757352188740,13.59559401,216.51,216.45,38.5]
[1757352189036,13.59559401,216.49,216.45,38.53]
[1757352189236,0.72,216.49,216.45,0.03]
[1757352189420,13.59559401,216.52,216.46,39.18]
[1757352189928,13.59559401,216.52,216.47,4.61957777]
[1757352190127,13.59559401,216.54,216.47,4.61957777]
[1757352190328,13.59559401,216.5,216.48,38.52]
[1757352190636,13.59559401,216.48,216.47,38.54]
[1757352190838,0.69,216.48,216.45,0.03]
[1757352191045,14.28559401,216.47,216.46,38.54]
[1757352191345,13.59559401,216.46,216.45,0.03]
[1757352191549,0.69,216.46,216.45,38.59]
[1757352191722,0.69,216.46,216.45,0.03]
[1757352191916,0.69,216.46,216.45,38.57]
[1757352192442,18.90538519,216.46,216.45,38.57]
[1757352192640,29.66100896,216.46,216.45,38.57]
[1757352192827,13.59559401,216.45,216.32,0.69]
[1757352193153,13.59559401,216.39,216.25,0.69]
[1757352193325,13.59559401,216.37,216.26,17.06]
[1757352193524,13.59559401,216.35,216.26,17.75]
[1757352193743,13.59559401,216.33,216.26,17.75]
[1757352194050,13.59559401,216.38,216.27,39.27]
[1757352194222,13.59559401,216.38,216.28,39.27]
[1757352194423,13.59559401,216.42,216.29,0.69]
[1757352194925,0.69,216.41,216.29,0.69]
[1757352195126,13.59559401,216.43,216.31,26.0]
[1757352195344,13.59559401,216.43,216.32,0.69]
[1757352195641,13.59559401,216.43,216.33,38.58]
[1757352195851,13.59559401,216.43,216.35,16.17749017]
[1757352196154,13.59559401,216.43,216.36,0.69]
[1757352196647,13.59559401,216.43,216.35,16.17749017]
[1757352196852,13.59559401,216.47,216.37,0.69]
[1757352198025,13.59559401,216.47,216.38,4.62149921]
[1757352198229,13.59559401,216.47,216.39,39.21]
[1757352198433,13.59559401,216.49,216.4,0.69]
[1757352198946,13.59559401,216.52,216.4,0.69]
[1757352199920,13.59559401,216.52,216.42,0.5]
[1757352200125,13.59559401,216.52,216.43,0.69]
[1757352201245,13.59559401,216.52,216.44,16.17076325]
[1757352201422,13.59559401,216.52,216.45,38.46]
[1757352201625,11.83946445,216.58,216.45,38.46]
[1757352201626,0.69,216.56,216.46,0.69]
[1757352202027,0.98609858,216.58,216.47,26.0]
[1757352202241,0.29609858,216.58,216.48,0.69]
[1757352202530,0.29609858,216.58,216.49,38.46]
[1757352202733,0.29609858,216.58,216.5,0.69]
[1757352203253,0.29609858,216.58,216.51,16.16553507]
[1757352203429,0.29609858,216.58,216.52,0.69]
[1757352203626,0.29609858,216.58,216.53,38.44]
[1757352203840,0.69,216.57,216.51,4.6187243]
[1757352204153,0.29609858,216.58,216.47,37.54863936]
[1757352204154,13.59559401,216.55,216.52,38.42]
[1757352204330,0.69,216.54,216.52,38.42]
[1757352204647,0.69,216.53,216.49,4.61898138]
[1757352204832,13.59559401,216.55,216.5,38.4]
[1757352205033,14.28559401,216.55,216.5,38.4]
[1757352205226,14.28559401,216.55,216.5,43.01893238]
[1757352205428,14.28559401,216.55,216.5,4.61893238]
[1757352205648,13.89169259,216.58,216.51,38.4]
[1757352205852,13.59559401,216.53,216.51,38.4]
[1757352206239,0.69,216.53,216.51,38.4]
[1757352206441,0.69,216.53,216.48,4.61934228]
[1757352206642,13.59559401,216.56,216.49,38.38]
[1757352206844,13.59559401,216.54,216.49,38.38]
[1757352207048,0.69,216.53,216.49,38.38]
[1757352207553,13.59559401,216.51,216.45,4.61986864]
[1757352207746,13.59559401,216.51,216.46,38.34]
[1757352207938,13.59559401,216.49,216.46,38.34]
[1757352208433,0.69,216.51,216.43,5.31022223]
[1757352208642,0.69,216.51,216.44,38.34]
[1757352208952,0.35609858,216.58,216.48,26.0]
[1757352209142,0.35609858,216.58,216.49,0.69]
[1757352209656,0.35609858,216.58,216.5,39.94]
[1757352209953,0.35609858,216.58,216.51,0.69]
[1757352210151,0.35609858,216.58,216.52,39.92]
[1757352210357,0.35609858,216.58,216.53,0.69]
[1757352210840,0.35609858,216.58,216.54,4.61808441]
[1757352211040,0.35609858,216.58,216.55,40.61]
[1757352211250,0.35609858,216.58,216.56,0.69]
[1757352212267,6.21973276,216.64,216.57,0.69]
[1757352212268,0.91377561,216.64,216.57,0.69]
[1757352212450,13.59559401,216.78,216.61,26.0]
[1757352212757,13.59559401,216.78,216.58,33.22]
[1757352212758,0.69,216.77,216.62,40.67]
[1757352213055,0.69,216.77,216.65,26.0]
[1757352213353,0.69,216.79,216.65,26.0]
[1757352213552,0.69,216.76,216.66,40.02]
[1757352213744,3.61776302,216.75,216.67,40.69]
[1757352213938,0.69,216.75,216.68,40.0]
[1757352214256,0.69,216.77,216.68,45.30498612]
[1757352214438,0.69,216.77,216.68,0.69]
[1757352214754,0.69,216.77,216.69,40.0]
[1757352214939,0.69,216.77,216.7,39.98]
[1757352215135,0.69,216.77,216.68,0.69]
[1757352215346,0.69,216.77,216.69,39.98]
[1757352215852,13.59559401,216.75,216.7,39.96]
[1757352216047,4.6142488,216.72,216.64,0.69]
[1757352216353,13.59559401,216.71,216.64,0.69]
[1757352216654,13.59559401,216.69,216.65,39.94]
[1757352216954,13.59559401,216.67,216.66,39.94]
[1757352217765,20.0,216.77,216.66,44.55548657]
[1757352217941,7.53041086,216.76,216.67,40.02]
[1757352218141,13.59559401,216.72,216.63,0.69]
[1757352218343,13.59559401,216.72,216.67,0.5]
[1757352218556,4.71256908,216.8,216.67,0.5]
[1757352218557,13.59559401,216.7,216.67,0.5]
[1757352218758,13.59559401,216.7,216.68,40.06]
[1757352218952,21.12600487,216.74,216.67,0.5]
[1757352219154,13.59559401,216.72,216.68,40.02]
[1757352219463,0.69,216.71,216.69,40.02]
[1757352219667,14.28559401,216.71,216.7,40.02]
[1757352219872,18.90005573,216.71,216.7,40.02]
[1757352220069,18.90005573,216.71,216.7,40.0]
[1757352220451,14.28559401,216.71,216.65,4.61573833]
[1757352220658,14.28559401,216.71,216.7,39.98]
[1757352220980,13.59559401,216.77,216.7,39.98]
[1757352221287,13.59559401,216.77,216.71,39.94]
[1757352221585,13.59559401,216.75,216.64,26.0]
[1757352221875,13.59559401,216.73,216.65,44.55570439]
[1757352222869,13.59559401,216.73,216.66,0.68]
[1757352223161,13.59559401,216.71,216.59,0.68]
[1757352223367,13.59559401,216.69,216.6,39.88]
[1757352223558,13.59559401,216.69,216.61,39.9]
[1757352223559,13.59559401,216.67,216.61,39.9]
[1757352223766,4.61552663,216.66,216.62,39.9]
[1757352223967,13.59559401,216.65,216.63,39.88]
[1757352224179,13.59559401,216.65,216.64,39.88]
[1757352224680,14.31559401,216.65,216.64,39.88]
[1757352224858,18.93133368,216.65,216.64,39.88]
[1757352225463,4.61541324,216.67,216.64,39.88]
[1757352225669,0.72,216.66,216.64,39.88]
[1757352225865,0.72,216.65,216.64,39.88]
[1757352226778,0.72,216.65,216.64,39.8]
[1757352226989,13.59559401,216.64,216.54,0.68]
[1757352227291,13.59559401,216.64,216.55,39.78]
[1757352227663,13.59559401,216.64,216.52,0.68]
[1757352227965,6.84041086,216.61,216.55,0.03]
[1757352228490,13.59559401,216.61,216.56,39.76]
[1757352228699,13.59559401,216.62,216.56,39.76]
[1757352228859,13.59559401,216.59,216.56,39.76]
[1757352229059,4.6172315,216.58,216.56,39.76]
[1757352229461,4.61467466,216.7,216.57,40.4]
[1757352229783,13.59559401,216.66,216.58,0.68]
[1757352229973,20.43600487,216.66,216.59,39.74]
[1757352230174,20.43600487,216.64,216.58,0.68]
[1757352230372,13.59559401,216.62,216.55,0.71]
[1757352230580,13.59559401,216.62,216.56,39.74]
[1757352231291,13.59559401,216.6,216.57,39.74]
[1757352231481,13.59559401,216.6,216.55,0.71]
[1757352231668,13.59559401,216.6,216.55,0.03]
[1757352231869,13.59559401,216.6,216.56,39.72]
[1757352232370,13.59559401,216.58,216.55,0.03]
[1757352232577,13.59559401,216.58,216.56,39.68]
[1757352233086,13.59559401,216.58,216.57,39.7]
[1757352233289,18.21282551,216.58,216.57,39.7]
[1757352233866,18.21282551,216.58,216.57,39.68]
[1757352235100,29.75590427,216.58,216.55,0.03]
[1757352235397,29.75590427,216.58,216.57,39.66]
[1757352235398,36.59631513,216.58,216.57,39.66]
[1757352235690,13.59559401,216.57,216.56,39.6]
[1757352235892,13.59559401,216.57,216.55,39.63]
[1757352236090,6.84041086,216.56,216.55,39.63]
[1757352236472,13.59559401,216.58,216.55,40.29]
[1757352237078,13.59559401,216.58,216.55,39.61]
[1757352237275,11.45785556,216.57,216.56,39.6]
[1757352238466,4.6174447,216.57,216.56,39.54]
[1757352238992,11.45785556,216.57,216.56,39.54]
[1757352239986,4.6174447,216.57,216.56,39.54]
[1757352240186,11.45785556,216.57,216.56,39.48]
[1757352240792,12.17785556,216.57,216.55,0.03]
[1757352240981,7.56041086,216.56,216.55,0.03]
[1757352241684,12.17806878,216.56,216.55,0.03]
[1757352242773,25.77366279,216.56,216.55,0.03]
[1757352243395,29.2035495,216.56,216.55,0.03]
[1757352243593,25.77366279,216.56,216.55,0.03]
[1757352244094,22.36313864,216.56,216.55,0.03]
[1757352244276,25.05366279,216.56,216.55,0.03]
[1757352245584,18.93325193,216.56,216.55,0.03]
[1757352245787,25.77366279,216.56,216.55,0.03]
[1757352246289,13.59559401,216.56,216.55,0.71]
[1757352246470,18.21325193,216.56,216.55,0.03]
[1757352246867,13.59559401,216.56,216.55,0.71]
[1757352247296,25.77366279,216.56,216.55,0.03]
[1757352247600,13.59559401,216.56,216.55,0.03]
[1757352248497,25.05366279,216.56,216.55,0.03]
[1757352248789,25.77366279,216.56,216.55,0.03]
[1757352248992,147.29559401,216.55,216.49,0.68]
[1757352249183,147.29559401,216.55,216.4,37.55246987]
[1757352249184,13.59559401,216.51,216.47,0.68]
[1757352249379,13.59559401,216.52,216.48,38.3]
[1757352249684,4.6187243,216.51,216.49,0.68]
[1757352250294,5.7187243,216.51,216.49,0.68]
[1757352251286,13.59559401,216.5,216.49,0.68]
[1757352251680,18.21453165,216.5,216.49,0.68]
[1757352251892,13.59559401,216.5,216.49,0.68]
[1757352252684,18.21453165,216.5,216.49,0.68]
[1757352253398,13.59559401,216.5,216.49,0.68]
[1757352253599,4.61701832,216.59,216.49,5.29897761]
[1757352253817,13.59559401,216.58,216.5,0.68]
[1757352254097,4.61723269,216.58,216.5,0.68]
[1757352254294,4.61723269,216.58,216.51,0.5]
[1757352254599,13.59559401,216.57,216.52,0.68]
[1757352254816,13.59559401,216.57,216.53,0.68]
[1757352255303,13.59559401,216.57,216.54,39.06]
[1757352255810,1.1,216.6,216.55,0.68]
[1757352255979,13.59559401,216.62,216.55,0.68]
[1757352256597,4.61595273,216.64,216.55,0.68]
[1757352256902,13.59559401,216.64,216.55,0.68]
[1757352257219,0.06,216.65,216.57,26.0]
[1757352257514,0.06,216.65,216.58,0.68]
[1757352257717,0.06,216.65,216.59,55.17956414]
[1757352257886,0.06,216.65,216.6,0.68]
[1757352258089,0.06,216.65,216.61,39.02]
[1757352258289,0.06,216.65,216.62,0.68]
[1757352258507,0.06,216.65,216.63,0.68]
[1757352259021,0.06,216.65,216.64,0.68]
[1757352259600,0.06,216.65,216.64,5.29595273]
[1757352260509,0.06,216.65,216.64,0.68]
[1757352261018,0.06,216.65,216.64,39.66]
[1757352261699,0.06,216.65,216.64,0.68]
[1757352261899,0.06,216.65,216.64,39.64]
[1757352262202,0.06,216.68,216.64,56.29583456]
[1757352262402,0.06,216.68,216.65,0.68]
[1757352263418,0.06,216.68,216.67,4.61531361]
[1757352263727,0.06,216.68,216.67,5.29531361]
[1757352264298,0.06,216.68,216.67,0.68]
[1757352264501,0.06,216.68,216.67,39.6]
[1757352265720,0.06,216.68,216.67,44.21531361]
[1757352266106,0.06,216.68,216.67,0.68]
[1757352266515,0.06,216.68,216.67,39.54]
[1757352266825,0.06,216.68,216.67,0.68]
[1757352267401,0.06,216.68,216.67,39.52]
[1757352267622,0.06,216.68,216.67,39.5]
[1757352267823,0.06,216.68,216.64,1.18]
[1757352268121,0.06,216.68,216.65,0.68]
[1757352268343,0.06,216.68,216.64,1.18]
[1757352268510,0.06,216.68,216.65,39.5]
[1757352269037,0.06,216.68,216.66,0.68]
[1757352269406,0.06,216.68,216.67,0.68]
[1757352270028,0.06,216.68,216.65,38.82]
[1757352270329,0.67,216.67,216.6,0.68]
[1757352270527,13.59559401,216.64,216.56,0.68]
[1757352270733,0.06,216.68,216.61,33.0]
[1757352270901,0.06,216.68,216.61,59.0]
[1757352271106,0.06,216.68,216.64,26.0]
[1757352271529,0.06,216.68,216.65,0.68]
[1757352271735,0.06,216.68,216.66,39.48]
[1757352272231,0.06,216.68,216.67,39.48]
[1757352273010,0.06,216.68,216.67,39.46]
[1757352274129,0.06,216.68,216.67,39.4]
[1757352275513,0.06,216.68,216.67,44.01531361]
[1757352277103,0.06,216.68,216.67,44.69531361]
[1757352277710,0.06,216.68,216.67,44.01531361]
[1757352278131,0.06,216.68,216.62,0.68]
[1757352278321,0.06,216.68,216.63,39.28]
[1757352278628,0.06,216.68,216.63,39.96]
[1757352279225,0.06,216.68,216.64,4.61595273]
[1757352279623,13.59559401,216.67,216.64,4.61595273]
[1757352279825,14.26559401,216.67,216.63,39.28]
[1757352280013,0.06,216.68,216.63,39.28]
[1757352280215,13.59559401,216.65,216.63,39.28]
[1757352280414,14.27559401,216.65,216.63,39.28]
[1757352280614,0.68,216.67,216.63,39.28]
[1757352280814,13.59559401,216.65,216.63,39.28]
[1757352281017,0.68,216.64,216.58,38.5272188]
[1757352281239,18.21187769,216.63,216.59,39.26]
[1757352281433,0.68,216.62,216.59,39.26]
[1757352281922,13.59559401,216.6,216.59,39.26]
[1757352282320,14.27559401,216.6,216.59,39.26]
[1757352283338,13.59559401,216.61,216.59,39.26]
[1757352283722,0.06,216.71,216.62,26.0]
[1757352283919,0.06,216.71,216.63,39.22]
[1757352284244,0.06,216.71,216.63,65.71]
[1757352284542,0.06,216.71,216.64,0.49]
[1757352284851,0.06,216.71,216.66,26.0]
[1757352285147,0.06,216.71,216.7,30.61467466]
[1757352285441,0.06,216.71,216.7,70.94467466]
[1757352286238,1e-08,216.71,216.7,71.49843561]
[1757352286412,0.68,216.87,216.7,106.10849559]
[1757352286615,0.68,216.87,216.71,0.49]
[1757352287038,5.29029128,216.91,216.74,26.0]
[1757352287339,0.68,216.91,216.81,26.0]
[1757352287523,5.29021663,216.91,216.81,65.78]
[1757352287718,4.61044956,216.9,216.81,26.49]
[1757352287922,13.59559401,216.88,216.81,65.78]
[1757352288135,13.59559401,216.88,216.81,39.78]
[1757352288345,13.59559401,216.81,216.71,0.49]
[1757352288546,13.59559401,216.79,216.72,39.76]
[1757352288837,13.59559401,216.79,216.67,0.49]
[1757352288838,14.27559401,216.79,216.73,39.76]
[1757352289047,13.59559401,216.77,216.74,39.82]
[1757352289229,13.59559401,216.75,216.74,39.82]
[1757352289429,14.27559401,216.75,216.66,0.5]
[1757352289640,14.27559401,216.75,216.67,39.82]
[1757352289839,14.27559401,216.74,216.67,39.82]
[1757352290344,13.59559401,216.76,216.68,39.88]
[1757352290548,13.59559401,216.76,216.7,0.03]
[1757352290728,0.06,216.71,216.7,0.03]
[1757352292745,0.06,216.71,216.7,0.52]
[1757352292934,0.06,216.71,216.7,0.03]
[1757352293338,0.06,216.71,216.7,39.83]
[1757352294431,0.06,216.71,216.7,39.77]
[1757352297743,25.06001153,216.71,216.7,0.03]
[1757352298051,14.33559401,216.71,216.7,39.71]
[1757352298524,25.06001153,216.71,216.7,39.71]
[1757352299882,29.67447325,216.71,216.7,39.71]
[1757352300052,29.67447325,216.71,216.7,0.03]
[1757352300234,33.10510549,216.71,216.7,0.03]
[1757352300438,33.10510549,216.71,216.7,39.63]
[1757352300763,33.10510549,216.71,216.7,0.03]
[1757352300944,33.10510549,216.71,216.7,39.63]
[1757352301147,22.38068797,216.71,216.7,39.63]
[1757352301353,33.10510549,216.71,216.7,39.63]
[1757352301745,22.38068797,216.71,216.7,39.63]
[1757352301947,33.10510549,216.71,216.7,0.03]
[1757352302270,33.10838845,216.71,216.7,39.59]
[1757352303068,33.10838845,216.71,216.7,0.03]
[1757352303247,33.10838845,216.71,216.7,39.59]
[1757352304372,29.67447325,216.71,216.7,39.59]
[1757352304568,29.67447325,216.71,216.7,0.03]
[1757352304750,17.09102214,216.71,216.7,39.49]
[1757352305055,0.06,216.71,216.7,39.49]
[1757352306956,0.06,216.71,216.7,44.60467466]
[1757352307340,0.06,216.71,216.7,39.49]
[1757352307541,0.06,216.71,216.7,39.45]
[1757352308241,0.06,216.71,216.7,39.43]
[1757352308564,0.06,216.71,216.7,0.03]
[1757352308762,0.06,216.71,216.7,39.41]
[1757352309057,13.65559401,216.71,216.7,39.41]
[1757352309264,0.06,216.71,216.7,39.41]
[1757352309463,0.06,216.71,216.7,39.91]
[1757352310556,1e-08,216.71,216.7,44.52467466]
[1757352311088,1e-08,216.71,216.7,44.50467466]
[1757352311251,0.06,216.74,216.73,26.0]
[1757352311662,1e-08,216.74,216.73,26.5]
[1757352312169,1e-08,216.74,216.73,65.84]
[1757352312412,1e-08,216.74,216.73,65.82]
[1757352312664,1e-08,216.74,216.73,31.61403589]
[1757352312859,1e-08,216.74,216.73,70.93403589]
[1757352313056,1e-08,216.74,216.73,70.91403589]
[1757352315046,1e-08,216.74,216.73,71.46772019]
[1757352315370,1e-08,216.74,216.73,70.91403589]
[1757352316185,1e-08,216.74,216.73,31.11403589]
[1757352316392,1e-08,216.74,216.73,70.79403589]
[1757352316772,1e-08,216.74,216.73,31.61403589]
[1757352317085,1e-08,216.74,216.73,31.11403589]
[1757352317276,1e-08,216.74,216.73,44.27403589]
[1757352317691,1e-08,216.74,216.73,0.5]
[1757352317870,1e-08,216.74,216.73,44.27403589]
[1757352318896,1e-08,216.74,216.73,39.66]
[1757352319093,1e-08,216.74,216.73,44.27403589]
[1757352319982,1e-08,216.74,216.73,39.66]
[1757352320289,0.72000001,216.74,216.73,39.6]
[1757352320888,0.72000001,216.74,216.73,0.5]
[1757352320889,18.92941703,216.74,216.73,0.5]
[1757352321093,13.59559401,216.73,216.7,0.03]
[1757352321392,12.15834322,216.74,216.71,39.08]
[1757352321593,7.5445202,216.73,216.71,39.08]
[1757352321796,14.31559401,216.72,216.71,39.08]
[1757352322570,1e-08,216.74,216.71,39.08]
[1757352322989,0.72,216.73,216.71,39.08]
[1757352323190,0.72,216.72,216.71,39.08]
[1757352324682,7.5445202,216.72,216.71,39.08]
[1757352324871,13.59559401,216.71,216.7,0.03]
[1757352325066,0.72,216.71,216.7,0.03]
[1757352325382,13.59559401,216.72,216.7,0.03]
[1757352325585,0.72,216.73,216.7,0.03]
[1757352325986,0.72,216.72,216.7,0.03]
[1757352326178,13.59559402,216.74,216.71,39.08]
[1757352326705,13.59559401,216.72,216.71,39.08]